Cogmind - Beta 13 @@@ ROGUE MODE // 2024.05.10 @ 17:48:47 Player: Calliope Result: Self-destructed Performance ------------- Evolutions (1) 500 Regions Visited (2) 400 Robots Destroyed (14) 70 Value Destroyed (239) 239 Prototype IDs (0) 0 Alien Tech Used (0) 0 Bonus (0) 0 TOTAL SCORE: 1209 Bonus ------- None Cogmind --------- Core Integrity 400/400 Matter 210/300 Energy 125/125 System Corruption 0% Temperature Cool (0) Movement Treading (160) Location -9/Materials Parts ------- > --- POWER (1) -------- Light Ion Engine > --- PROPULSION (4) --- Light Treads Light Treads Light Treads > --- UTILITY (2) ------ Large Storage Unit Advanced Visual Processing Unit > --- WEAPON (2) ------- Ion Cannon Ion Cannon > --- INVENTORY (15) --- Aluminum Leg Aluminum Leg Heat Sink Small Storage Unit High-capacity Matter Pod (94) Advanced Visual Processing Unit Hacking Suite Hacking Suite Hacking Suite Hacking Suite Small Laser Small Laser Light Assault Rifle Light Assault Rifle Mining Laser Peak State ------------ > --- POWER ------------ Light Ion Engine > --- PROPULSION ------- Light Treads Light Treads Light Treads > --- UTILITY ---------- Large Storage Unit Advanced Visual Processing Unit > --- WEAPON ----------- Ion Cannon Ion Cannon > --- INVENTORY -------- Aluminum Leg Aluminum Leg Heat Sink Small Storage Unit High-capacity Matter Pod Hacking Suite Hacking Suite Hacking Suite Hacking Suite Small Laser Small Laser Light Assault Rifle Light Assault Rifle Mining Laser [Rating: 16] Favorites ----------- Power Light Ion Engine Engine Light Ion Engine Propulsion Wheel Treads Light Treads Leg Aluminum Leg Wheel Wheel Hover Unit Improved Hover Unit Utility Large Storage Unit Device ECM Suite Storage Large Storage Unit Processor Advanced Visual Processing Unit Weapon Light Assault Rifle Energy Gun Small Laser Energy Cannon Ion Cannon Ballistic Gun Light Assault Rifle Build | -11 -10 -9 ------- Run | Yrd Mat Mat Slots Evolved 2 | . . 2 Power . | . . . Propulsion 2 | . . 2 Utility . | . . . Weapon . | . . . Parts Attached 20 | 6 10 4 Power 2 | 1 1 . Engine 2 | 1 1 . Core . | . . . Reactor . | . . . Propulsion 9 | 2 6 1 Treads 3 | . 2 1 Leg 2 | 2 . . Wheel 2 | . 2 . Hover 2 | . 2 . Flight . | . . . Utility 4 | 1 2 1 Device 1 | . 1 . Storage 2 | 1 1 . Processor 1 | . . 1 Hackware . | . . . Protection . | . . . Artifact . | . . . Weapon 5 | 2 1 2 Energy Gun 1 | . 1 . Energy Cannon 2 | . . 2 Ballistic Gun 2 | 2 . . Ballistic Cannon . | . . . Launcher . | . . . Special Weapon . | . . . Impact Weapon . | . . . Slashing Weapon . | . . . Piercing Weapon . | . . . Special Melee Weapon . | . . . Unidentified Prototypes . | . . . Parts Lost 2 | . 2 . Power . | . . . Propulsion 1 | . 1 . Utility . | . . . Weapon 1 | . 1 . Highest Loss Streak 1 | . 1 . To Critical Strikes . | . . . Average Slot Usage (%) 94 | . 95 86 Engine 13 | . 14 11 Treads 5 | . 2 33 Leg 1 | . 1 . Wheel 18 | . 21 . Device 12 | . 13 6 Storage 13 | . 14 11 Energy Gun 4 | . 4 4 Energy Cannon 1 | . . 12 Ballistic Gun 20 | . 23 4 Naked Turns . | . . . Heaviest Build 37 | 11 28 37 Greatest Support 60 | 20 40 60 Greatest Overweight (x) 8 | . 8 . Average Overweight (x) . | . 1 . Largest Inventory Capacity 15 | 8 15 15 Average Capacity 13 | 7 14 15 Most Carried 15 | 7 15 15 Average Carried 10 | 4 11 13 Final Capacity 15 | 8 15 15 Final Carried 15 | 7 13 15 Class Distribution -------------------- 100% | Mutant Dominant Class ---------------- Mutant | -10/Materials Mutant | -9/Materials Resources | -11 -10 -9 ----------- Run | Yrd Mat Mat Matter Collected 544 | 284 260 . Remotely . | . . . Salvage Created 465 | 60 405 . Parts 25 | 7 18 . Haulers Intercepted 2 | . 2 . Recyclers Shooed . | . . . Parts Field Recycled . | . . . Retrieved Matter . | . . . Parts Self-Destructed . | . . . Prevented . | . . . Kills | -11 -10 -9 ------- Run | Yrd Mat Mat Combat Hostiles Destroyed 8 | . 8 . Guns 8 | . 8 . Classes Destroyed 5 | 1 4 . Worker 1 | . 1 . Tunneler 3 | 3 . . Hauler 2 | . 2 . Swarmer 3 | . 3 . Grunt 5 | . 5 . Best Kill Streak 3 | 3 2 . Combat Bots Only 2 | . 2 . Max Kills in Single Turn 2 | 1 2 . Gunslinging . | . . . Exploded . | . . . Melee . | . . . Uniques/NPCs Destroyed . | . . . Combat | -11 -10 -9 -------- Run | Yrd Mat Mat Hostile Shots Fired 54 | . 54 . Missed 19 | . 19 . Damage Taken 368 | . 368 . Core 64 | . 64 . Absorbed by Shields . | . . . Core Remaining (%) 87 | 100 74 . Volleys Fired 48 | 6 42 . Largest 2 | 2 2 . Hottest 60 | 40 60 . Shots Fired 86 | 12 74 . Gun 86 | 12 74 . Cannon . | . . . Launcher . | . . . Special . | . . . Kinetic 82 | 12 70 . Thermal 4 | . 4 . Explosive . | . . . Electromagnetic . | . . . Robot Hit Streak 13 | 4 13 . Robot Miss Streak 4 | 1 4 . Penetration Max . | . . . Secondary Targets 1 | . 1 . Max Gunslinging Chain 1 | . 1 . Shots Hit Robots 56 | 8 48 . Core Hits 26 | 6 20 . Critical Kills 2 | . 2 . Critical Parts Destroyed 1 | . 1 . Critical Strikes 3 | . 3 . Destroy 3 | . 3 . Melee Attacks . | . . . Impact . | . . . Slashing . | . . . Piercing . | . . . Sneak Attacks . | . . . Combat Hostiles . | . . . Follow-up Attacks . | . . . Damage Inflicted 580 | 107 473 . Guns 580 | 107 473 . Cannons . | . . . Explosions . | . . . Melee . | . . . Ramming . | . . . Kinetic 560 | 107 453 . Thermal 20 | . 20 . Explosive . | . . . Electromagnetic . | . . . Impact . | . . . Slashing . | . . . Piercing . | . . . Highest Corruption . | . . . Average Corruption . | . . . Corruption Purged . | . . . Corruption Blocked . | . . . Overload Shots . | . . . Overflow Damage . | . . . Projectiles . | . . . Explosions . | . . . Melee . | . . . Knockbacks . | . . . Impact . | . . . Kinetic . | . . . Secondary . | . . . Self-Inflicted Damage . | . . . Shots . | . . . Rammed . | . . . Targets Rammed . | . . . Kicked . | . . . Crushed . | . . . Highest Temperature 20 | . 20 . Average Temperature 10 | . 10 . Received Heat Transfer 159 | . 159 . Siege Activations . | . . . Robots Corrupted . | . . . Combat Hostiles . | . . . Parts Fried . | . . . Impact Corruptions . | . . . Robots Melted . | . . . Combat Hostiles . | . . . Parts Melted . | . . . Heat Transferred 50 | . 50 . Parts Sabotaged . | . . . Parts Stolen . | . . . Parts Stripped . | . . . Power Chain Reactions . | . . . Alert | -11 -10 -9 ------- Run | Yrd Mat Mat Peak Influence 142 | 15 142 42 Initial 27 | . 9 27 Average 41 | 4 47 41 Maximum Alert Level . | . . . Low Security (%) 100 | 100 100 100 Level 1 . | . . . Level 2 . | . . . Level 3 . | . . . Level 4 . | . . . Level 5 . | . . . High Security . | . . . Max Security . | . . . Squads Dispatched 2 | . 1 1 Investigation . | . . . Extermination . | . . . Reinforcement 2 | . 1 1 Assault . | . . . Garrison . | . . . Intercept . | . . . Searches Triggered . | . . . Construction Impeded . | . . . Haulers Reinforced . | . . . Active Scanning Responses . | . . . Cargo Convoy Interrupts . | . . . Stealth | -11 -10 -9 --------- Run | Yrd Mat Mat Distress Signals 4 | . 4 . Communications Jammed . | . . . Distress Signals . | . . . Times Spotted 21 | . 21 . Peak Tracking Total 4 | . 4 1 Tactical Retreats 4 | . 4 . Traps | -11 -10 -9 ------- Run | Yrd Mat Mat Traps Triggered . | . . . Indirectly . | . . . Trap Hack Attempts . | . . . Triggered . | . . . Disarmed . | . . . Reprogrammed . | . . . Reused . | . . . Traps Extracted . | . . . Installed . | . . . Triggered . | . . . Machines | -11 -10 -9 ---------- Run | Yrd Mat Mat Machines Disabled . | . . . Max in Single Turn . | . . . Machines Repaired . | . . . Machines Dismantled . | . . . Machines Sabotaged . | . . . Overloaded Fab Kills . | . . . Hacking | -11 -10 -9 --------- Run | Yrd Mat Mat Machines Accessed 3 | . 3 . Terminals 3 | . 3 . Fabricators . | . . . Repair Stations . | . . . Recycling Units . | . . . Scanalyzers . | . . . Garrison Access . | . . . Total Hacks 5 | . 5 . Successful 2 | . 2 . Failed 3 | . 3 . Catastrophic 1 | . 1 . Database Lockouts . | . . . Manual 5 | . 5 . Terminals 5 | . 5 . Fabricators . | . . . Repair Stations . | . . . Recycling Units . | . . . Scanalyzers . | . . . Garrison Access . | . . . Terminal Hacks 1 | . 1 . Unreport Threat 1 | . 1 . Fabricator Hacks . | . . . Repair Station Hacks . | . . . Recycling Unit Hacks . | . . . Scanalyzer . | . . . Garrison Access Hacks . | . . . Unauthorized Hacks 1 | . 1 . Terminals 1 | . 1 . Botnet 1 | . 1 . Fabricators . | . . . Repair Stations . | . . . Recycling Units . | . . . Scanalyzers . | . . . Garrison Access . | . . . Data Cores Recovered . | . . . Used . | . . . Hacking Detections 2 | . 2 . Full Trace Events . | . . . Feedback Events . | . . . Feedback Blocked . | . . . Robot Schematics Acquired . | . . . Robots Built . | . . . Authchips . | . . . Time . | . . . Total Robot Build Rating . | . . . Part Schematics Acquired . | . . . Parts Built . | . . . Authchips . | . . . Time . | . . . Total Part Build Rating . | . . . Parts Repaired . | . . . Time . | . . . Parts Recycled . | . . . Recycled Matter . | . . . Retrieved Matter . | . . . Retrieved Components . | . . . Parts Scanalyzed . | . . . Part Schematics Acquired . | . . . Parts Damaged . | . . . Bothacking | -11 -10 -9 ------------ Run | Yrd Mat Mat Used RIF Installer . | . . . Robots Hacked . | . . . Non-combat . | . . . Combat . | . . . Robot Hacks Applied . | . . . Relay Couplers Released . | . . . Fabnet Peak Effective % . | . . . Robots Rewired . | . . . Allies Hacked . | . . . Hacks Repelled . | . . . Allies | -11 -10 -9 -------- Run | Yrd Mat Mat Total Allies . | . . . Largest Group . | . . . Highest-Rated Group . | . . . Highest-Rated Ally . | . . . Total Orders . | . . . Ally Attacks . | . . . Total Damage . | . . . Kills . | . . . Allies Corrupted . | . . . Allies Melted . | . . . Intel | -11 -10 -9 ------- Run | Yrd Mat Mat Robot Analysis Total . | . . . Derelict Logs Recovered . | . . . Drone Launches . | . . . Drone Recoveries . | . . . Exploration | -11 -10 -9 ------------- Run | Yrd Mat Mat Turns Passed 828 | 113 634 81 Spaces Moved 532 | 63 431 38 Core 12 | 11 1 . Treads 72 | . 34 38 Legs 81 | 52 29 . Wheels 363 | . 363 . Hover 4 | . 4 . Flight . | . . . Fastest Speed 50 | 50 95 160 Average Speed 110 | 107 106 160 Slowest Speed 450 | 120 450 160 Overloaded Moves . | . . . Propulsion Burnouts . | . . . Robots Hopped . | . . . Cave-ins Triggered . | . . . Exploration Rate (%) 17 | 3 45 3 Regions Visited 2 Branch Regions . Pre-discovered Areas . | . . . Known Exits Taken . | . . . Unknown Exits Taken 2 | 1 1 . Scrap Searched . | . . . Spaces Dug . | . . . Terrain Destroyed . | . . . Melee . | . . . Projectile . | . . . AOE . | . . . Terrain Rammed . | . . . Walls Destroyed . | . . . Machines Disabled . | . . . Actions | -11 -10 -9 --------- Run | Yrd Mat Mat Total 694 | 94 540 60 Wait 65 | 13 47 5 Move 530 | 62 430 38 Hop . | . . . Pick Up 20 | 7 8 5 Fast Attach 12 | 6 3 3 Attach 2 | . 1 1 Detach 3 | . . 3 Swap 6 | . 6 . Drop 8 | . 3 5 Fire 48 | 6 42 . Melee . | . . . Ram . | . . . Kick . | . . . Crush . | . . . Escape Stasis . | . . . Rewire . | . . . Trap . | . . . Miscellaneous . | . . . Route ------- -11/Scrapyard -10/Materials (discovered 2 exits: [*Mat] / [*Min]) -9/Materials History --------- Turn | Location | Event 14 | -11/Scrapyard | Discovered new exit (range 15) 114 | -11/Scrapyard | Entered Materials 310 | -10/Materials | Build established: Mutant 479 | -10/Materials | Discovered new exit (range 3) 567 | -10/Materials | Discovered new exit (range 15) 748 | -10/Materials | Entered another Materials area 748 | -9/Materials | Evolved 2 slots: Propulsion x2 829 | -9/Materials | Self-destructed Last Messages --------------- 00676_ Dropped Wheel. 00681_ Acquired Imp. Hover Unit. 00701_ Dropped Imp. Hover Unit. 00705_ R-06 Scavenger collects Heat Sink. PARAMETERS=PROPULSION+2 LOCATION=UNKNOWN GOAL=ESCAPE 00750_ O-16 Technician: "IFF HANDSHAKE FAILED. SECURING TERMINAL." 00755_ Dropped Lgt. Ion Engine. 00756_ Dropped Wheel. 00756_ Dropped Com. Wheel. 00757_ Dropped Salvage Targeting Computer. 00759_ ALERT: Hostiles spotted, dispatching reinforcements to Terminal M009. 00760_ Acquired Hacking Suite. 00777_ Acquired Ion Cannon. 00791_ Dropped ECM Suite. 00791_ Acquired Adv. Visual Processing Unit. Map ----- +----------------------------------------------------+ | ????????????????????????????????????????? | | ????????????????????????????????????????? | | ????????????????????????????????????????? | | ????????????????????????????????????????? | | ????????????????????????????????????????? | | ????????????????????????????????????????? | | ????????????????????????????????????????? | | ????????????????????????????????????????? | | ?????????#+#????????????????????????????? | | ????????? ????????????????????????????? | | ?????????# #????????????????????????????? | | ?????????# #????????????????????????????? | | ?????????# #????????????????????????????? | | ?????????# #????????????????????????????? | | ?????????# #????????????????????????????? | | ?????????# #????????????????????????????? | | ?????????# #???????????????#????????????? | | ?????##### #####+####### ###+##???????? | | ?????#]] ?????? | | ?????# = ?????? | | ?????#!!*= ?????? | | ?????# ! ###+######+##??????????????? | | ?????# ! # #???????????????????? | | ?????# # "" #???????????????????? | | ?????##### # """#???????????????????? | | ?????????##### @ S"#???????????????????? | | ?????????????# #???????????????????? | | ?????????????# #???????????????????? | | ?????????????########???????????????????? | | ????????????????????????????????????????? | | ????????????????????????????????????????? | | ????????????????????????????????????????? | | ????????????????????????????????????????? | | ????????????????????????????????????????? | | ????????????????????????????????????????? | | ????????????????????????????????????????? | | | | | | | | | | | | | | | | | | | | | | | | | | | | | +----------------------------------------------------+ Best States ------------- Heat Dissipation 28 Energy Generation 10 Energy Capacity 125 Matter Stores 300 Matter Capacity 300 Sight Range 20 Terrain Scan Density 10 ECM Strength 1 Evasion (%) 55 Recoil Reduction 3 Item Schematics ----------------- None Robot Schematics ------------------ None Fabricated ------------ Nothing Alien Tech Used ----------------- None Achievements -------------- None Challenges ------------ None Game ------ Seed SupersonicMeleeTriangulator Manual? 0 Play Time 00:08:54 Cumulative 24.2 hours Start 2024.04.29 @ 22:37:52 End 2024.05.10 @ 17:48:47 Sessions 3 Manual Loads 0 Difficulty Rogue Special Mode None Game No. 42 Rogue 40 Adventurer 0 Explorer 2 Win Type - Total 0 Types 0/0/0/0/0/0/0/0/0 Lore% 17 Gallery% 27 Achievement% 27 Wizard Run 0 Options --------- Layout 2 ASCII 0 Keyboard 1 Movement Vi Keybinds 0 Fullscreen 2 Font 32/SmallcapsGlow Map View 50x44 Zoom Use 0% Tactical HUD 1 Map Filters NONE Filters NONE Steam 1 RUN: 116f68e1-fa73-4001-8100-14c89d2bb0c5